[Event "23rd ETCC Women 2021"]
[Site "Catez"]
[Date "2021.11.13"]
[Round "2.7"]
[White "Arabidze, Meri"]
[Black "Cosma, Elena-Luminita"]
[Result "1/2-1/2"]
[ECO "A14"]
[WhiteElo "2441"]
[BlackElo "2281"]
[Annotator "ChessBase"]
[PlyCount "171"]
[EventDate "2021.11.08"]
[EventType "team-tourn"]
[EventCountry "SLO"]
[SourceTitle "playchess.com"]
[Source "ChessBase"]
[SourceQuality "1"]
[WhiteTeam "Georgia"]
[BlackTeam "Romania"]
[WhiteTeamCountry "GEO"]
[BlackTeamCountry "ROU"]
[TimeControl "40/5400+30:1800+30"]

1. Nf3 {[%emt 1:28:35]} d5 {[%emt 1:29:59]} 2. g3 {[%emt 0:00:30]} Nf6 {
[%emt 0:00:30]} 3. Bg2 {[%emt 0:00:30]} e6 {[%emt 0:00:30]} 4. O-O {[%emt 0:00:
30]} Be7 {[%emt 0:00:30]} 5. c4 {[%emt 0:00:30]} dxc4 {[%emt 0:00:30]} 6. Na3 {
[%emt 0:00:30]} O-O {[%emt 0:00:30]} 7. Nxc4 {[%emt 0:00:30]} c5 {[%emt 0:00:
30]} 8. b3 {[%emt 0:00:30]} b5 {[%emt 0:00:30]} 9. Nce5 {[%emt 0:00:30]} Bb7 {
[%emt 0:00:30]} 10. Bb2 {[%emt 0:00:30]} Nbd7 {[%emt 0:00:30]} 11. Nxd7 {
[%emt 0:00:30]} Nxd7 {[%emt 0:00:30]} 12. Rc1 {[%emt 0:00:30]} Rc8 {[%emt 0:00:
30]} 13. d3 {[%emt 0:00:30]} Bf6 {[%emt 0:00:30]} 14. Qd2 {[%emt 0:00:30]} Qb6
{[%emt 0:00:30]} 15. Rc2 {[%emt 0:00:30]} Bxb2 {[%emt 0:00:30]} 16. Rxb2 {
[%emt 0:00:30]} Rc7 {[%emt 0:00:30]} 17. Rc1 {[%emt 0:00:30]} Rfc8 {[%emt 0:00:
30]} 18. Rbc2 {[%emt 0:00:30]} h6 {[%emt 0:00:30]} 19. Qf4 {[%emt 0:00:30]} Nf6
{[%emt 0:00:30]} 20. g4 {[%emt 0:00:30]} Ne8 {[%emt 0:00:30]} 21. h4 {[%emt 0:
00:30]} Qd6 {[%emt 0:00:30]} 22. Qxd6 {[%emt 0:00:30]} Nxd6 {[%emt 0:00:30]}
23. Nd2 {[%emt 0:00:30]} Bxg2 {[%emt 0:00:30]} 24. Kxg2 {[%emt 0:00:30]} Kf8 {
[%emt 0:00:30]} 25. f4 {[%emt 0:00:30]} h5 {[%emt 0:00:30]} 26. gxh5 {[%emt 0:
00:30]} Nf5 {[%emt 0:00:30]} 27. Kf2 {[%emt 0:00:30]} Nd4 {[%emt 0:00:30]} 28.
Rc3 {[%emt 0:00:30]} b4 {[%emt 0:00:30]} 29. Rc4 {[%emt 0:00:30]} f5 {[%emt 0:
00:30]} 30. a3 {[%emt 0:00:30]} bxa3 {[%emt 0:00:30]} 31. Ra4 {[%emt 0:00:30]}
Nb5 {[%emt 0:00:30]} 32. Nc4 {[%emt 0:00:30]} Ke7 {[%emt 0:00:30]} 33. Nxa3 {
[%emt 0:00:30]} Nxa3 {[%emt 0:00:30]} 34. Rxa3 {[%emt 0:00:30]} Rb8 {[%emt 0:
00:30]} 35. d4 {[%emt 0:00:30]} Rb5 {[%emt 0:00:30]} 36. Rxc5 {[%emt 0:00:30]}
Rcxc5 {[%emt 0:00:30]} 37. dxc5 {[%emt 0:00:30]} Rxc5 {[%emt 0:00:30]} 38.
Rxa7+ {[%emt 0:00:30]} Kf6 {[%emt 0:00:30]} 39. Rb7 {[%emt 0:00:30]} e5 {
[%emt 0:00:30]} 40. Rb6+ {[%emt 0:00:30]} Kf7 {[%emt 0:00:30]} 41. Rb7+ {
[%emt 0:30:30]} Kf6 {[%emt 0:30:30]} 42. b4 {[%emt 0:00:30]} Rc4 {[%emt 0:00:
30]} 43. fxe5+ {[%emt 0:00:30]} Kxe5 {[%emt 0:00:30]} 44. b5 {[%emt 0:00:30]}
Rxh4 {[%emt 0:00:30]} 45. b6 {[%emt 0:00:30]} Rb4 {[%emt 0:00:30]} 46. Rb8 {
[%emt 0:00:30]} Kf6 {[%emt 0:00:30]} 47. b7 {[%emt 0:00:30]} Kg5 {[%emt 0:00:
30]} 48. h6 {[%emt 0:00:30]} Kg6 {[%emt 0:00:30]} 49. hxg7 {[%emt 0:00:30]}
Kxg7 {[%emt 0:00:30]} 50. e3 {[%emt 0:00:30]} Kh7 {[%emt 0:00:30]} 51. Ke2 {
[%emt 0:00:30]} Rb3 {[%emt 0:00:30]} 52. Kd2 {[%emt 0:00:30]} Kg7 {[%emt 0:00:
30]} 53. Kc2 {[%emt 0:00:30]} Rb5 {[%emt 0:00:30]} 54. Kc3 {[%emt 0:00:30]} Rb1
{[%emt 0:00:30]} 55. Kd4 {[%emt 0:00:30]} Rb3 {[%emt 0:00:30]} 56. Kc5 {
[%emt 0:00:30]} Kh7 {[%emt 0:00:30]} 57. Kc6 {[%emt 0:00:30]} Rc3+ {[%emt 0:00:
30]} 58. Kd5 {[%emt 0:00:30]} Rb3 {[%emt 0:00:30]} 59. Kc4 {[%emt 0:00:30]} Rb1
{[%emt 0:00:30]} 60. Kd4 {[%emt 0:00:30]} Rb3 {[%emt 0:00:30]} 61. Rf8 {
[%emt 0:00:30]} Rxb7 {[%emt 0:00:30]} 62. Rxf5 {[%emt 0:00:30]} Kg6 {[%emt 0:
00:30]} 63. e4 {[%emt 0:00:30]} Rb4+ {[%emt 0:00:30]} 64. Ke3 {[%emt 0:00:30]}
Rb3+ {[%emt 0:00:30]} 65. Kf4 {[%emt 0:00:30]} Rb1 {[%emt 0:00:30]} 66. Ra5 {
[%emt 0:00:30]} Kf6 {[%emt 0:00:30]} 67. Ra6+ {[%emt 0:00:30]} Ke7 {[%emt 0:00:
30]} 68. Kf5 {[%emt 0:00:30]} Rb2 {[%emt 0:00:30]} 69. Ra7+ {[%emt 0:00:30]}
Ke8 {[%emt 0:00:30]} 70. Rc7 {[%emt 0:00:30]} Kd8 {[%emt 0:00:30]} 71. Rh7 {
[%emt 0:00:30]} Ke8 {[%emt 0:00:30]} 72. Rg7 {[%emt 0:00:30]} Rb5+ {[%emt 0:00:
30]} 73. e5 {[%emt 0:00:30]} Rb6 {[%emt 0:00:30]} 74. Rc7 {[%emt 0:00:30]} Ra6
{[%emt 0:00:30]} 75. Rb7 {[%emt 0:00:30]} Rc6 {[%emt 0:00:30]} 76. Ke4 {
[%emt 0:00:30]} Ra6 {[%emt 0:00:30]} 77. Rc7 {[%emt 0:00:30]} Rb6 {[%emt 0:00:
30]} 78. Kd5 {[%emt 0:00:30]} Ra6 {[%emt 0:00:30]} 79. Rc6 {[%emt 0:00:30]}
Rxc6 {[%emt 0:00:30]} 80. Kxc6 {[%emt 0:00:30]} Ke7 {[%emt 0:00:30]} 81. Kd5 {
[%emt 0:00:30]} Kd7 {[%emt 0:00:30]} 82. e6+ {[%emt 0:00:30]} Ke7 {[%emt 0:00:
30]} 83. Ke5 {[%emt 0:00:30]} Ke8 {[%emt 0:00:30]} 84. Kd6 {[%emt 0:00:30]} Kd8
{[%emt 0:00:30]} 85. e7+ {[%emt 0:00:30]} Ke8 {[%emt 0:00:30]} 86. Ke6 {
[%emt 0:00:30]} 1/2-1/2

[Event "23rd ETCC Women 2021"]
[Site "Catez"]
[Date "2021.11.13"]
[Round "2.8"]
[White "Sandu, Mihaela"]
[Black "Gvetadze, Sofio"]
[Result "1/2-1/2"]
[ECO "B08"]
[WhiteElo "2244"]
[BlackElo "2302"]
[Annotator "RC"]
[PlyCount "213"]
[EventDate "2021.11.08"]
[EventType "team-tourn"]
[EventCountry "SLO"]
[SourceTitle "playchess.com"]
[Source "ChessBase"]
[SourceQuality "1"]
[WhiteTeam "Romania"]
[BlackTeam "Georgia"]
[WhiteTeamCountry "ROU"]
[BlackTeamCountry "GEO"]
[TimeControl "40/5400+30:1800+30"]

1. e4 {[%emt 0:00:09]} g6 {[%emt 0:00:14]} 2. d4 {[%emt 0:00:09]} Bg7 {[%emt 0:
00:05]} 3. Nf3 {[%emt 0:00:20]} d6 {[%emt 0:00:21]} 4. Be2 {[%emt 0:00:47]} Nf6
{[%emt 0:02:05]} 5. Nc3 {[%emt 0:00:25]} c6 {[%emt 0:02:18]} 6. O-O {[%emt 0:
05:17]} O-O {[%emt 0:02:03]} 7. a4 {[%emt 0:05:22]} Qc7 {[%emt 0:01:54]} 8. h3
{[%emt 0:06:16]} e5 {[%emt 0:00:24]} 9. dxe5 dxe5 {[%emt 0:00:15]} 10. Bc4 {
[%emt 0:01:27]} a5 {[%emt 0:07:28]} 11. Be3 {[%emt 0:01:37]} Na6 {[%emt 0:03:
35]} 12. Qe2 {[%emt 0:15:17]} Nh5 {[%emt 0:02:36]} 13. Rfd1 {[%emt 0:07:43]}
Nf4 {[%emt 0:02:06]} 14. Bxf4 {[%emt 0:01:22]} exf4 {[%emt 0:00:06]} 15. e5 {
[%emt 0:01:47]} Nb4 {[%emt 0:05:47]} 16. Ne4 {[%emt 0:04:43]} Bxe5 {[%emt 0:05:
17]} 17. c3 {[%emt 0:01:32]} Nd5 {[%emt 0:06:00]} 18. Bxd5 {[%emt 0:07:02]}
cxd5 {[%emt 0:00:12]} 19. Rxd5 {[%emt 0:00:04]} Bg7 {[%emt 0:00:54]} 20. Nd4 {
[%emt 0:00:58]} Ra6 {[%emt 0:11:44]} 21. Rd1 {[%emt 0:05:55]} Rb6 {[%emt 0:27:
39]} 22. Qd2 {[%emt 0:15:19]} Bd7 {[%emt 0:08:44]} 23. Nb5 {[%emt 0:03:52]}
Bxb5 {[%emt 0:00:06]} 24. axb5 {[%emt 0:00:04]} Re6 {[%emt 0:00:34]} 25. Nc5 {
[%emt 0:00:40]} Re7 {[%emt 0:00:42]} 26. b6 {[%emt 0:01:42]} Qc6 {[%emt 0:00:
32]} 27. Qxf4 {[%emt 0:08:43]} Qxb6 {[%emt 0:01:19]} 28. Nd7 {[%emt 0:00:38]}
Rxd7 {[%emt 0:00:08]} 29. Rxd7 {[%emt 0:00:04]} Qxb2 {[%emt 0:00:04]} 30. Re7 {
[%emt 0:02:28]} b5 {[%emt 0:02:10]} 31. Rd8 {[%emt 0:02:09]} Qb3 {[%emt 0:00:
30]} 32. c4 {[%emt 0:00:35]} Qxc4 {[%emt 0:03:27]} 33. Qxc4 {[%emt 0:00:10]}
bxc4 {[%emt 0:00:06]} 34. Rxf8+ {[%emt 0:00:37]} Bxf8 {[%emt 0:03:55]} 35. Rc7
{[%emt 0:00:20]} a4 {[%emt 0:00:31]} 36. Rxc4 {[%emt 0:00:05]} a3 {[%emt 0:00:
04]} 37. g4 {[%emt 0:01:28]} Be7 {[%emt 0:00:20]} 38. Ra4 {[%emt 0:00:08]} Kg7
{[%emt 0:01:10]} 39. Kf1 {[%emt 0:00:25]} h6 {[%emt 0:01:29]} 40. Ke2 {[%emt 0:
00:08]} Bc5 {[%emt 0:00:12]} 41. f3 {[%emt 0:31:14]} Kf6 {[%emt 0:03:07]} 42.
Kd3 {[%emt 0:00:00]} Bf8 {[%emt 0:02:04]} 43. Ke4 {[%emt 0:00:00]} Ke6 {
[%emt 0:16:32]} 44. Ra6+ {[%emt 0:00:00]} Bd6 {[%emt 0:00:17]} 45. Kd4 {
[%emt 0:00:00]} h5 {[%emt 0:04:29]} 46. g5 {[%emt 0:00:01]} Kd7 {[%emt 0:03:02]
} 47. Kd5 {[%emt 0:00:12]} Bf4 {[%emt 0:01:17]} 48. Ra7+ {[%emt 0:01:42]} Ke8 {
[%emt 0:00:11]} 49. h4 {[%emt 0:02:58]} Bg3 {[%emt 0:03:09]} 50. Rxa3 {[%emt 0:
00:07]} Bxh4 {[%emt 0:00:04]} 51. f4 {[%emt 0:00:13]} Kf8 {[%emt 0:00:50]} 52.
Ke5 {[%emt 0:00:55]} Bf2 {[%emt 0:01:27]} 53. f5 {[%emt 0:01:02]} gxf5 {
[%emt 0:00:19]} 54. Kf6 {[%emt 0:00:35]} Bd4+ {[%emt 0:00:21]} 55. Kxf5 {
[%emt 0:00:03]} Kg7 {[%emt 0:01:07]} 56. Rh3 {[%emt 0:00:07]} Bc5 {[%emt 0:00:
31]} 57. Rxh5 {[%emt 0:00:05]} Be7 {[%emt 0:00:12]} 58. Rh1 {[%emt 0:00:04]}
Bd8 {[%emt 0:00:22]} 59. Rd1 {[%emt 0:00:21]} Ba5 {[%emt 0:00:15]} 60. Rd5 {
[%emt 0:00:14]} Bc3 {[%emt 0:00:16]} 61. Rc5 {[%emt 0:01:20]} Bd4 {[%emt 0:00:
18]} 62. Rc4 {[%emt 0:00:24]} Bb2 {[%emt 0:00:16]} 63. Rc6 {[%emt 0:01:33]} Kf8
{[%emt 0:00:23]} 64. Rc7 {[%emt 0:00:13]} Ke8 {[%emt 0:00:27]} 65. Rb7 {
[%emt 0:00:16]} Bc3 {[%emt 0:00:23]} 66. Ke4 {[%emt 0:01:06]} Bd2 {[%emt 0:00:
25]} 67. Kf5 {[%emt 0:00:09]} Bc3 {[%emt 0:00:05]} 68. Rb8+ {[%emt 0:00:40]}
Ke7 {[%emt 0:00:13]} 69. Rb3 {[%emt 0:00:06]} Bg7 {[%emt 0:00:46]} 70. Re3+ {
[%emt 0:00:14]} Kf8 {[%emt 0:00:44]} 71. Re2 {[%emt 0:00:39]} Bd4 {[%emt 0:00:
20]} 72. Rd2 {[%emt 0:00:50]} Bc3 {[%emt 0:00:35]} 73. Rc2 {[%emt 0:00:26]} Bd4
{[%emt 0:01:01]} 74. Rc7 {[%emt 0:01:12]} Bb2 {[%emt 0:00:25]} 75. Rb7 {
[%emt 0:00:06]} Bc3 {[%emt 0:00:10]} 76. Kg4 {[%emt 0:00:07]} Bd4 {[%emt 0:01:
00]} 77. Kh5 {[%emt 0:00:05]} Be3 {[%emt 0:00:18]} 78. Rb3 {[%emt 0:01:26]} Bd2
{[%emt 0:00:45]} 79. Rb8+ {[%emt 0:00:22]} Kg7 {[%emt 0:00:44]} 80. Rb2 {
[%emt 0:00:27]} Bc3 {[%emt 0:00:18]} 81. Rb7 {[%emt 0:00:08]} Kg8 {[%emt 0:01:
03]} 82. Rc7 {[%emt 0:01:04]} Be5 {[%emt 0:00:36]} 83. Rb7 {[%emt 0:00:42]} Bd4
{[%emt 0:00:35]} 84. Kh6 {[%emt 0:00:25]} Bg7+ {[%emt 0:00:07]} 85. Kh5 {
[%emt 0:00:04]} Bd4 {[%emt 0:00:05]} 86. Kg4 {[%emt 0:00:32]} Kf8 {[%emt 0:00:
18]} 87. Kf5 {[%emt 0:00:05]} Bc3 {[%emt 0:00:41]} 88. Rb3 {[%emt 0:01:13]} Bd4
{[%emt 0:00:42]} 89. Rf3 {[%emt 0:00:15]} Kg7 {[%emt 0:00:33]} 90. Rf4 {
[%emt 0:00:32]} Bc3 {[%emt 0:00:26]} 91. Rc4 {[%emt 0:00:29]} Bb2 {[%emt 0:00:
17]} 92. Rc7 {[%emt 0:00:16]} Kf8 {[%emt 0:00:22]} 93. Rb7 {[%emt 0:00:11]} Bc3
{[%emt 0:00:16]} 94. g6 {[%emt 0:00:14]} fxg6+ {[%emt 0:00:20]} 95. Kxg6 {
[%emt 0:00:05]} Ke8 {[%emt 0:00:32]} 96. Kf5 {[%emt 0:00:11]} Kd8 {[%emt 0:00:
17]} 97. Ke6 {[%emt 0:00:09]} Be1 {[%emt 0:02:35]} 98. Kd6 {[%emt 0:00:22]}
Bg3+ {[%emt 0:00:21]} 99. Kc6 {[%emt 0:00:09]} Bf4 {[%emt 0:00:20]} 100. Rf7 {
[%emt 0:00:19]} Bg3 {[%emt 0:00:20]} 101. Rf3 {[%emt 0:00:33]} Bh2 {[%emt 0:00:
31]} 102. Rh3 {[%emt 0:00:38]} Bf4 {[%emt 0:00:37]} 103. Rh7 {[%emt 0:00:33]}
Bg3 {[%emt 0:00:14]} 104. Ra7 {[%emt 0:01:05]} Bf4 {[%emt 0:00:12]} 105. Rd7+ {
[%emt 0:00:00]} Ke8 {[%emt 0:00:09]} 106. Ra7 {[%emt 0:00:22]} Kd8 {[%emt 0:00:
20]} 107. Kd5 {[%emt 0:00:34]} 1/2-1/2

[Event "23rd ETCC Women 2021"]
[Site "Catez"]
[Date "2021.11.13"]
[Round "2.9"]
[White "Lazarne Vajda, Szidonia"]
[Black "Zawadzka, Jolanta"]
[Result "1/2-1/2"]
[ECO "D35"]
[WhiteElo "2345"]
[BlackElo "2429"]
[Annotator "NA"]
[PlyCount "103"]
[EventDate "2021.11.08"]
[EventType "team-tourn"]
[EventCountry "SLO"]
[SourceTitle "playchess.com"]
[Source "ChessBase"]
[SourceQuality "1"]
[WhiteTeam "Hungary"]
[BlackTeam "Poland"]
[WhiteTeamCountry "HUN"]
[BlackTeamCountry "POL"]
[TimeControl "40/5400+30:1800+30"]

1. d4 {[%emt 0:00:14]} d5 {[%emt 0:00:06]} 2. c4 {[%emt 0:00:27]} e6 {[%emt 0:
00:10]} 3. Nc3 {[%emt 0:00:55]} Nf6 {[%emt 0:00:12]} 4. cxd5 {[%emt 0:02:06]}
exd5 {[%emt 0:00:14]} 5. Bg5 {[%emt 0:00:48]} c6 {[%emt 0:00:27]} 6. e3 {
[%emt 0:01:27]} Be6 {[%emt 0:00:30]} 7. Bd3 {[%emt 0:02:08]} Nbd7 {[%emt 0:00:
35]} 8. Nge2 {[%emt 0:15:12]} h6 {[%emt 0:11:00]} 9. Bh4 {[%emt 0:00:06]} g5 {
[%emt 0:00:44]} 10. Bg3 {[%emt 0:00:18]} Nh5 {[%emt 0:00:31]} 11. Qc2 {[%emt 0:
17:10]} Nxg3 {[%emt 0:02:46]} 12. Nxg3 {[%emt 0:03:22]} h5 {[%emt 0:00:20]} 13.
h3 {[%emt 0:08:18]} h4 {[%emt 0:04:09]} 14. Nge2 {[%emt 0:02:20]} Qf6 {[%emt 0:
05:08]} 15. Rf1 {[%emt 0:09:28]} O-O-O {[%emt 0:05:15]} 16. O-O-O {[%emt 0:00:
25]} Kb8 {[%emt 0:00:53]} 17. Kb1 {[%emt 0:00:38]} Bh6 {[%emt 0:12:48]} 18. f3
{[%emt 0:07:34]} Qe7 {[%emt 0:06:27]} 19. e4 {[%emt 0:04:25]} dxe4 {[%emt 0:05:
20]} 20. fxe4 {[%emt 0:02:30]} Nb6 {[%emt 0:00:18]} 21. Na4 {[%emt 0:05:05]}
Bg7 {[%emt 0:11:32]} 22. Nxb6 {[%emt 0:01:48]} axb6 {[%emt 0:00:03]} 23. e5 {
[%emt 0:04:24]} f6 {[%emt 0:02:27]} 24. exf6 {[%emt 0:04:06]} Bxf6 {[%emt 0:00:
04]} 25. Bc4 {[%emt 0:01:23]} Bc8 {[%emt 0:05:10]} 26. d5 {[%emt 0:01:55]} b5 {
[%emt 0:00:55]} 27. Bb3 {[%emt 0:00:31]} c5 {[%emt 0:01:01]} 28. a4 {[%emt 0:
01:31]} b4 {[%emt 0:08:47]} 29. Nc1 {[%emt 0:01:30]} Rhf8 {[%emt 0:00:48]} 30.
Rde1 {[%emt 0:01:10]} Qc7 {[%emt 0:01:55]} 31. Re2 {[%emt 0:00:46]} Bd4 {
[%emt 0:01:04]} 32. Rxf8 {[%emt 0:01:13]} Rxf8 {[%emt 0:00:02]} 33. Ka2 {
[%emt 0:00:19]} Qg3 {[%emt 0:04:31]} 34. Bc4 {[%emt 0:00:37]} g4 {[%emt 0:03:
16]} 35. Nb3 {[%emt 0:00:53]} gxh3 {[%emt 0:02:05]} 36. gxh3 {[%emt 0:00:03]}
Bxh3 {[%emt 0:00:27]} 37. Nxd4 {[%emt 0:00:05]} cxd4 {[%emt 0:00:03]} 38. Qd2 {
[%emt 0:01:01]} Bf1 {[%emt 0:05:22]} 39. Qxb4 {[%emt 0:00:06]} Qg7 {[%emt 0:00:
34]} 40. Rd2 {[%emt 0:01:32]} Bxc4+ {[%emt 0:01:13]} 41. Qxc4 {[%emt 0:30:04]}
Rf4 {[%emt 0:03:48]} 42. d6 {[%emt 0:00:00]} Qf7 {[%emt 0:10:16]} 43. Qxf7 {
[%emt 0:00:00]} Rxf7 {[%emt 0:00:02]} 44. Rxd4 {[%emt 0:00:00]} Rd7 {[%emt 0:
00:08]} 45. Rxh4 {[%emt 0:00:00]} Rxd6 {[%emt 0:00:03]} 46. Ka3 {[%emt 0:00:00]
} Ka7 {[%emt 0:00:19]} 47. b3 {[%emt 0:00:00]} Rg6 {[%emt 0:00:16]} 48. a5 {
[%emt 0:00:00]} b6 {[%emt 0:01:00]} 49. axb6+ {[%emt 0:00:00]} Kxb6 {[%emt 0:
00:03]} 50. Ka4 {[%emt 0:00:00]} Rf6 {[%emt 0:00:48]} 51. b4 {[%emt 0:00:00]}
Rg6 {[%emt 0:00:20]} 52. Rh8 {[%emt 0:00:00]} 1/2-1/2

[Event "23rd ETCC Women 2021"]
[Site "Catez"]
[Date "2021.11.13"]
[Round "2.10"]
[White "Kiolbasa, Oliwia"]
[Black "Gara, Ticia"]
[Result "1/2-1/2"]
[ECO "B45"]
[WhiteElo "2403"]
[BlackElo "2331"]
[Annotator "NA"]
[PlyCount "111"]
[EventDate "2021.11.08"]
[EventType "team-tourn"]
[EventCountry "SLO"]
[SourceTitle "playchess.com"]
[Source "ChessBase"]
[SourceQuality "1"]
[WhiteTeam "Poland"]
[BlackTeam "Hungary"]
[WhiteTeamCountry "POL"]
[BlackTeamCountry "HUN"]
[TimeControl "40/5400+30:1800+30"]

1. e4 {[%emt 0:00:04]} c5 {[%emt 0:00:10]} 2. Nf3 {[%emt 0:00:13]} e6 {[%emt 0:
00:18]} 3. d4 {[%emt 0:00:15]} cxd4 {[%emt 0:00:10]} 4. Nxd4 {[%emt 0:00:09]}
Nf6 {[%emt 0:00:21]} 5. Nc3 {[%emt 0:01:15]} Nc6 {[%emt 0:00:16]} 6. Ndb5 {
[%emt 0:05:14]} Bb4 {[%emt 0:00:37]} 7. a3 {[%emt 0:05:06]} Bxc3+ {[%emt 0:00:
08]} 8. Nxc3 {[%emt 0:00:06]} d5 {[%emt 0:00:14]} 9. exd5 {[%emt 0:01:22]} exd5
{[%emt 0:00:10]} 10. Bd3 {[%emt 0:01:55]} O-O {[%emt 0:00:22]} 11. O-O {
[%emt 0:01:16]} d4 {[%emt 0:00:48]} 12. Ne4 {[%emt 0:13:14]} Bf5 {[%emt 0:01:
59]} 13. Bg5 {[%emt 0:19:16]} Bxe4 {[%emt 0:00:31]} 14. Bxe4 {[%emt 0:01:30]}
h6 {[%emt 0:00:27]} 15. Bh4 {[%emt 0:05:28]} g5 {[%emt 0:12:21]} 16. Bxc6 {
[%emt 0:04:32]} bxc6 {[%emt 0:00:13]} 17. Bg3 {[%emt 0:00:07]} Qd5 {[%emt 0:25:
09]} 18. Qd3 {[%emt 0:09:23]} Ne4 {[%emt 0:10:37]} 19. Rad1 {[%emt 0:00:56]}
Rad8 {[%emt 0:01:04]} 20. Rfe1 {[%emt 0:01:56]} Rfe8 {[%emt 0:06:14]} 21. f3 {
[%emt 0:06:40]} Nxg3 {[%emt 0:01:36]} 22. hxg3 {[%emt 0:00:02]} c5 {[%emt 0:03:
29]} 23. Qb5 {[%emt 0:05:30]} Rxe1+ {[%emt 0:11:49]} 24. Rxe1 {[%emt 0:00:07]}
c4 {[%emt 0:00:44]} 25. Re8+ {[%emt 0:06:30]} Kg7 {[%emt 0:00:44]} 26. Qxd5 {
[%emt 0:00:28]} Rxd5 {[%emt 0:00:02]} 27. Rc8 {[%emt 0:03:24]} d3 {[%emt 0:04:
50]} 28. cxd3 {[%emt 0:00:05]} cxd3 {[%emt 0:00:02]} 29. Rc1 {[%emt 0:00:08]}
Rb5 {[%emt 0:01:14]} 30. Rd1 {[%emt 0:03:05]} Rxb2 {[%emt 0:00:39]} 31. Rxd3 {
[%emt 0:00:10]} Ra2 {[%emt 0:01:20]} 32. g4 {[%emt 0:01:24]} a5 {[%emt 0:00:43]
} 33. Kh2 {[%emt 0:00:58]} Kf6 {[%emt 0:01:48]} 34. Rb3 {[%emt 0:01:36]} a4 {
[%emt 0:00:32]} 35. Re3 {[%emt 0:00:28]} Kg6 {[%emt 0:02:53]} 36. Rc3 {[%emt 0:
01:00]} f6 {[%emt 0:00:27]} 37. Kh3 {[%emt 0:01:06]} h5 {[%emt 0:01:33]} 38.
gxh5+ {[%emt 0:00:49]} Kxh5 {[%emt 0:00:03]} 39. g4+ {[%emt 0:01:00]} Kg6 {
[%emt 0:00:12]} 40. Kg3 {[%emt 0:00:12]} Kf7 {[%emt 0:01:47]} 41. Re3 {[%emt 0:
31:33]} Kg6 {[%emt 0:31:58]} 42. Rc3 {[%emt 0:00:23]} Kf7 {[%emt 0:00:14]} 43.
Re3 {[%emt 0:00:06]} Ra1 {[%emt 0:01:36]} 44. Kf2 {[%emt 0:00:00]} f5 {[%emt 0:
00:00]} 45. gxf5 {[%emt 0:00:00]} Kf6 {[%emt 0:00:00]} 46. Rc3 {[%emt 0:00:00]}
Kxf5 {[%emt 0:00:00]} 47. Rc5+ {[%emt 0:00:00]} Kf6 {[%emt 0:00:00]} 48. Kg3 {
[%emt 0:00:00]} Rxa3 {[%emt 0:00:00]} 49. Kg4 {[%emt 0:00:00]} Ra1 {[%emt 0:00:
00]} 50. Rf5+ {[%emt 0:00:00]} Ke6 {[%emt 0:00:00]} 51. Kxg5 {[%emt 0:00:00]}
a3 {[%emt 0:00:00]} 52. Ra5 {[%emt 0:00:00]} Kd6 {[%emt 0:00:00]} 53. Kf6 {
[%emt 0:00:00]} a2 {[%emt 0:00:00]} 54. f4 {[%emt 0:00:00]} Rf1 {[%emt 0:00:00]
} 55. Rxa2 {[%emt 0:00:00]} Rxf4+ {[%emt 0:00:00]} 56. Kg5 {[%emt 0:00:00]}
1/2-1/2

[Event "23rd ETCC Women 2021"]
[Site "Catez"]
[Date "2021.11.13"]
[Round "2.11"]
[White "Gaal, Zsoka"]
[Black "Socko, Monika"]
[Result "0-1"]
[ECO "D02"]
[WhiteElo "2336"]
[BlackElo "2393"]
[Annotator "ChessBase"]
[PlyCount "144"]
[EventDate "2021.11.08"]
[EventType "team-tourn"]
[EventCountry "SLO"]
[SourceTitle "playchess.com"]
[Source "ChessBase"]
[SourceQuality "1"]
[WhiteTeam "Hungary"]
[BlackTeam "Poland"]
[WhiteTeamCountry "HUN"]
[BlackTeamCountry "POL"]
[TimeControl "40/5400+30:1800+30"]

1. Nf3 {[%emt 0:00:08]} d5 {[%emt 0:00:10]} 2. g3 {[%emt 0:00:06]} Nd7 {
[%emt 0:00:09]} 3. d4 {[%emt 0:00:06]} Nb6 {[%emt 0:00:13]} 4. Bg2 {[%emt 0:00:
19]} Bf5 {[%emt 0:00:09]} 5. Nbd2 {[%emt 0:03:51]} Nf6 {[%emt 0:05:25]} 6. c4 {
[%emt 0:03:04]} c6 {[%emt 0:04:30]} 7. b3 {[%emt 0:09:43]} h6 {[%emt 0:05:43]}
8. Bb2 {[%emt 0:03:56]} e6 {[%emt 0:02:04]} 9. Ne5 {[%emt 0:04:23]} Be7 {
[%emt 0:02:53]} 10. O-O {[%emt 0:00:56]} O-O {[%emt 0:00:10]} 11. e3 {[%emt 0:
08:37]} a5 {[%emt 0:02:37]} 12. Qe2 {[%emt 0:02:22]} a4 {[%emt 0:05:22]} 13. e4
{[%emt 0:01:54]} dxe4 {[%emt 0:02:14]} 14. Nxe4 {[%emt 0:00:29]} Bxe4 {[%emt 0:
01:09]} 15. Bxe4 {[%emt 0:00:17]} Nxe4 {[%emt 0:00:22]} 16. Qxe4 {[%emt 0:00:
08]} Nd7 {[%emt 0:01:58]} 17. Nf3 {[%emt 0:05:40]} Nf6 {[%emt 0:02:13]} 18. Qc2
{[%emt 0:04:23]} Qa5 {[%emt 0:02:41]} 19. Ne5 {[%emt 0:02:59]} a3 {[%emt 0:06:
12]} 20. Bc3 {[%emt 0:01:32]} Bb4 {[%emt 0:00:10]} 21. Bxb4 {[%emt 0:01:06]}
Qxb4 {[%emt 0:00:02]} 22. Rad1 {[%emt 0:02:10]} Rfd8 {[%emt 0:02:30]} 23. Qc1 {
[%emt 0:04:50]} Rac8 {[%emt 0:04:28]} 24. h4 {[%emt 0:05:54]} b6 {[%emt 0:06:
04]} 25. Qf4 {[%emt 0:03:49]} Qe7 {[%emt 0:05:45]} 26. Rfe1 {[%emt 0:03:55]}
Qc7 {[%emt 0:01:46]} 27. Qf3 {[%emt 0:07:36]} Rd6 {[%emt 0:03:24]} 28. b4 {
[%emt 0:03:03]} Rcd8 {[%emt 0:04:58]} 29. Qxa3 {[%emt 0:00:38]} c5 {[%emt 0:02:
17]} 30. bxc5 {[%emt 0:04:32]} bxc5 {[%emt 0:00:02]} 31. d5 {[%emt 0:03:49]}
exd5 {[%emt 0:00:05]} 32. cxd5 {[%emt 0:00:06]} Rxd5 {[%emt 0:00:11]} 33. Rxd5
{[%emt 0:00:16]} Rxd5 {[%emt 0:00:33]} 34. Nc4 {[%emt 0:01:05]} Rd4 {[%emt 0:
04:21]} 35. Rc1 {[%emt 0:00:35]} Ne4 {[%emt 0:01:37]} 36. Qe3 {[%emt 0:05:30]}
Qd7 {[%emt 0:03:10]} 37. Kh2 {[%emt 0:02:40]} Qd5 {[%emt 0:04:49]} 38. Nb6 {
[%emt 0:00:53]} Qxa2 {[%emt 0:04:57]} 39. Rxc5 {[%emt 0:00:52]} Qxf2+ {[%emt 0:
01:12]} 40. Qxf2 {[%emt 0:00:02]} Nxf2 {[%emt 0:00:04]} 41. Kg2 {[%emt 0:04:23]
} Ne4 {[%emt 0:08:03]} 42. Rc4 {[%emt 0:05:57]} Rd2+ {[%emt 0:01:11]} 43. Kf3 {
[%emt 0:00:32]} f5 {[%emt 0:03:52]} 44. Rc8+ {[%emt 0:05:37]} Kh7 {[%emt 0:02:
06]} 45. g4 {[%emt 0:01:47]} Rd3+ {[%emt 0:07:40]} 46. Kf4 {[%emt 0:01:03]} Nd6
{[%emt 0:00:18]} 47. Rc6 {[%emt 0:00:49]} fxg4 {[%emt 0:01:27]} 48. Kxg4 {
[%emt 0:00:18]} Nf7 {[%emt 0:06:25]} 49. Re6 {[%emt 0:05:48]} g6 {[%emt 0:04:
36]} 50. Kf4 {[%emt 0:02:37]} Rh3 {[%emt 0:02:33]} 51. Kg4 {[%emt 0:00:31]} Rb3
{[%emt 0:00:34]} 52. Nd7 {[%emt 0:00:38]} Kg7 {[%emt 0:03:06]} 53. Kf4 {
[%emt 0:05:50]} Rb5 {[%emt 0:02:00]} 54. Kg3 {[%emt 0:00:39]} g5 {[%emt 0:00:
55]} 55. hxg5 {[%emt 0:00:19]} hxg5 {[%emt 0:00:25]} 56. Nf6 {[%emt 0:01:12]}
Ne5 {[%emt 0:01:01]} 57. Ne4 {[%emt 0:01:14]} Rb3+ {[%emt 0:00:20]} 58. Kg2 {
[%emt 0:00:49]} Ng6 {[%emt 0:00:13]} 59. Rc6 {[%emt 0:00:39]} Rb4 {[%emt 0:00:
37]} 60. Nc5 {[%emt 0:00:36]} Kh6 {[%emt 0:01:14]} 61. Nd3 {[%emt 0:00:24]} Rb5
{[%emt 0:00:01]} 62. Kg3 {[%emt 0:00:53]} Kh5 {[%emt 0:00:58]} 63. Rc7 {
[%emt 0:00:13]} Nh4 {[%emt 0:00:24]} 64. Rh7+ {[%emt 0:00:42]} Kg6 {[%emt 0:00:
02]} 65. Rd7 {[%emt 0:00:22]} Nf5+ {[%emt 0:00:07]} 66. Kg4 {[%emt 0:00:26]}
Ra5 {[%emt 0:00:19]} 67. Rb7 {[%emt 0:00:19]} Nh6+ {[%emt 0:00:34]} 68. Kf3 {
[%emt 0:00:18]} Ra3 {[%emt 0:00:52]} 69. Ke4 {[%emt 0:00:14]} Ng4 {[%emt 0:00:
10]} 70. Kf3 {[%emt 0:01:12]} Ne5+ {[%emt 0:00:09]} 71. Ke4 {[%emt 0:00:11]}
Nxd3 {[%emt 0:00:05]} 72. Rb6+ {[%emt 0:00:20]} Kh5 {[%emt 0:00:16]} 0-1